Cogmind - Beta 13 @@@ ROGUE MODE // 2024.04.22 @ 17:29:48 Player: Baxter Result: Self-destructed Performance ------------- Evolutions (2) 1000 Regions Visited (7) 1400 Robots Destroyed (64) 320 Value Destroyed (1828) 1828 Prototype IDs (25) 500 Alien Tech Used (0) 0 Bonus (1187) 1187 TOTAL SCORE: 6235 Bonus ------- High Alert Combat Kills 162 Follower Combat Kills 25 Entered Garrisons 200 Used RIF Installer 500 Aligned with FarCom 300 Cogmind --------- Core Integrity 104/550 Matter 692/700 Energy 160/160 System Corruption 1% Temperature Cool (0) Movement Walking (140) Location -8/Storage Parts ------- > --- POWER (1) -------- Light Nuclear Core > --- PROPULSION (3) --- Medium Armored Exoskeleton > --- UTILITY (5) ------ Large Storage Unit High-capacity Matter Pod High-capacity Matter Pod > --- WEAPON (2) ------- Improved Heavy Laser Flail > --- INVENTORY (15) --- Potential Leg Potential Leg Improved Signal Interpreter Plasma Cannon Peak State ------------ > --- POWER ------------ Light Deuterium Engine > --- PROPULSION ------- Potential Leg Potential Leg > --- UTILITY ---------- Large Storage Unit High-capacity Matter Pod High-capacity Matter Pod Structural Scanner Seismic Detector > --- WEAPON ----------- Heavy Shock Bomb Launcher Flail > --- INVENTORY -------- Light Nuclear Core Improved Signal Interpreter Plasma Cannon Autogun Autogun [Rating: 37] Favorites ----------- Power Ion Engine Engine Ion Engine Power Core Light Nuclear Core Propulsion Light Treads Treads Light Treads Leg Aluminum Leg Wheel Wheel Flight Unit Improved Flight Unit Utility Seismic Detector Device Seismic Detector Storage Large Storage Unit Hackware Hacking Suite Protection Hardened Medium Armor Plating Weapon Autogun Energy Gun EM Pulse Gun Energy Cannon Plasma Cannon Ballistic Gun Autogun Launcher Rocket Launcher Impact Weapon Flail Build | -11 -10 -10 -10 -9 -8 -8 -8 ------- Run | Yrd Mat Min Exi Min Mat Gar Sto Slots Evolved 4 | . . . . . 4 . . Power . | . . . . . . . . Propulsion 1 | . . . . . 1 . . Utility 3 | . . . . . 3 . . Weapon . | . . . . . . . . Parts Attached 87 | 7 9 4 1 9 14 37 6 Power 8 | 1 1 1 . 1 1 2 1 Engine 7 | 1 1 1 . 1 1 2 . Core 1 | . . . . . . . 1 Reactor . | . . . . . . . . Propulsion 25 | 2 2 2 . 4 4 11 . Treads 6 | 1 1 . . 2 1 1 . Leg 9 | . . . . . . 9 . Wheel 9 | 1 1 2 . 2 2 1 . Hover . | . . . . . . . . Flight 1 | . . . . . 1 . . Utility 18 | 2 1 1 1 2 6 5 . Device 7 | 1 . 1 . 2 2 1 . Storage 5 | 1 1 . 1 . . 2 . Processor . | . . . . . . . . Hackware 1 | . . . . . 1 . . Protection 5 | . . . . . 3 2 . Artifact . | . . . . . . . . Weapon 36 | 2 5 . . 2 3 19 5 Energy Gun 3 | 1 . . . . . . 2 Energy Cannon 1 | . . . . . . 1 . Ballistic Gun 18 | 1 4 . . 1 1 9 2 Ballistic Cannon . | . . . . . . . . Launcher 5 | . 1 . . . . 4 . Special Weapon . | . . . . . . . . Impact Weapon 9 | . . . . 1 2 5 1 Slashing Weapon . | . . . . . . . . Piercing Weapon . | . . . . . . . . Special Melee Weapon . | . . . . . . . . Unidentified Prototypes 2 | . . . . . 1 . 1 Parts Lost 26 | . . . 2 . 1 21 2 Power 4 | . . . 1 . . 3 . Propulsion 8 | . . . . . 1 7 . Utility 8 | . . . 1 . . 7 . Weapon 6 | . . . . . . 4 2 Highest Loss Streak 6 | . . . 2 . 1 6 2 To Critical Strikes . | . . . . . . . . Average Slot Usage (%) 91 | . 100 100 93 93 99 80 56 Engine 9 | . 14 14 9 7 9 8 . Treads 10 | . 14 14 14 14 11 6 . Leg 2 | . . . . . . 8 9 Wheel 11 | . 14 14 14 14 15 6 . Device 12 | . 14 14 9 12 17 11 . Storage 14 | . 14 14 15 15 9 14 27 Hackware 2 | . . . . . 8 4 . Protection 2 | . . . . . 9 4 . Ballistic Gun 19 | . 27 28 28 25 15 7 2 Impact Weapon 2 | . . . . 2 2 6 6 Naked Turns . | . . . . . . . . Heaviest Build 46 | 12 22 22 36 36 45 46 40 Greatest Support 70 | 20 20 20 10 20 20 70 50 Greatest Overweight (x) 4 | 1 1 2 3 3 4 4 . Average Overweight (x) 1 | . . 1 1 2 1 2 . Largest Inventory Capacity 15 | 8 10 10 15 15 15 15 15 Average Capacity 12 | 7 9 10 10 15 15 15 15 Most Carried 15 | 6 10 10 10 15 14 14 7 Average Carried 10 | 5 8 10 9 12 12 11 6 Final Capacity 15 | 8 10 10 15 15 15 15 15 Final Carried 14 | 6 10 10 10 14 14 7 4 Class Distribution -------------------- 74% | Mutant 25% | Scavenger-Mutant Dominant Class ---------------- Mutant | -10/Materials Mutant | -10/Mines Mutant | -10/Exiles Mutant | -9/Mines Scavenger-Mutant | -8/Materials Mutant | -8/Garrison Mutant | -8/Storage Resources | -11 -10 -10 -10 -9 -8 -8 -8 ----------- Run | Yrd Mat Min Exi Min Mat Gar Sto Matter Collected 2240 | 310 182 157 . 474 338 689 90 Remotely . | . . . . . . . . Salvage Created 1949 | 110 235 111 . 287 370 682 154 Parts 141 | 16 28 18 . 27 19 31 2 Haulers Intercepted 2 | . 1 . . . 1 . . Recyclers Shooed 2 | . . 1 . 1 . . . Parts Field Recycled . | . . . . . . . . Retrieved Matter . | . . . . . . . . Parts Self-Destructed . | . . . . . . . . Prevented . | . . . . . . . . Kills | -11 -10 -10 -10 -9 -8 -8 -8 ------- Run | Yrd Mat Min Exi Min Mat Gar Sto Combat Hostiles Destroyed 38 | . 7 3 . 4 5 17 2 Melee 1 | . . . . . . 1 . Guns 24 | . 4 3 . 4 5 7 1 AOE 12 | . 3 . . . . 9 . Classes Destroyed 13 | 2 5 . . 3 . 2 1 Worker 6 | 1 1 2 . 1 . . 1 Builder 2 | . . . . 2 . . . Tunneler 10 | 5 . 2 . 3 . . . Hauler 2 | . 1 . . . 1 . . Operator 2 | . 1 . . . 1 . . Watcher 5 | . 3 . . . 1 . 1 Swarmer 14 | . 6 3 . . . 5 . Grunt 18 | . 1 . . 2 5 10 . Brawler 1 | . . . . 1 . . . Duelist 1 | . . . . . . 1 . Sentry 2 | . . . . . . 1 1 Hunter 1 | . . . . . . . 1 Assembled 1 | . . . . 1 . . . Best Kill Streak 6 | 1 3 2 . 3 5 6 2 Combat Bots Only 6 | . 3 2 . 1 5 6 1 Max Kills in Single Turn 3 | 1 3 1 . 2 1 3 1 Gunslinging . | . . . . . . . . Exploded 3 | . 3 . . . . 3 . Melee 1 | . . . . . . 1 . Uniques/NPCs Destroyed . | . . . . . . . . Combat | -11 -10 -10 -10 -9 -8 -8 -8 -------- Run | Yrd Mat Min Exi Min Mat Gar Sto Hostile Shots Fired 405 | . 24 14 5 5 25 280 52 Missed 134 | . 6 6 2 . 10 94 16 Damage Taken 4005 | . 177 61 108 140 234 2691 594 Core 478 | . 19 9 4 . 17 414 15 Absorbed by Shields . | . . . . . . . . Core Remaining (%) 93 | 100 . . . 87 . . . Volleys Fired 213 | 50 33 15 . 21 26 56 12 Largest 2 | 1 2 2 . 2 2 2 2 Hottest 103 | 20 60 46 . 46 46 103 88 Shots Fired 356 | 50 65 30 . 42 52 94 23 Gun 334 | 50 64 30 . 42 52 73 23 Cannon 10 | . . . . . . 10 . Launcher 12 | . 1 . . . . 11 . Special . | . . . . . . . . Kinetic 318 | 50 61 30 . 42 52 73 10 Thermal 23 | . . . . . . 10 13 Explosive 11 | . 1 . . . . 10 . Electromagnetic 4 | . 3 . . . . 1 . Robot Hit Streak 20 | 7 7 3 . 12 20 12 7 Robot Miss Streak 9 | 3 3 4 . 5 3 9 4 Penetration Max . | . . . . . . . . Secondary Targets 2 | . . . . . . 2 . Max Gunslinging Chain 1 | . . . . . . 1 . Shots Hit Robots 228 | 35 41 13 . 25 36 53 25 Core Hits 106 | 14 22 7 . 13 17 31 2 Critical Kills 1 | . . . . . . 1 . Critical Parts Destroyed 4 | . . . . 1 . 1 2 Critical Strikes 5 | . . . . 1 . 2 2 Destroy 3 | . . . . 1 . 2 . Smash 2 | . . . . . . . 2 Melee Attacks 47 | . . . . 9 7 20 11 Impact 47 | . . . . 9 7 20 11 Slashing . | . . . . . . . . Piercing . | . . . . . . . . Sneak Attacks 2 | . . . . . . . 2 Combat Hostiles . | . . . . . . . . Follow-up Attacks . | . . . . . . . . Damage Inflicted 4295 | 313 464 207 . 416 603 1633 659 Guns 2847 | 313 356 207 . 416 560 654 341 Cannons 49 | . . . . . . 49 . Explosions 894 | . 108 . . . . 786 . Melee 505 | . . . . . 43 144 318 Ramming . | . . . . . . . . Kinetic 2581 | 313 345 207 . 416 560 654 86 Thermal 304 | . . . . . . 49 255 Explosive 772 | . 108 . . . . 664 . Electromagnetic 133 | . 11 . . . . 122 . Impact 505 | . . . . . 43 144 318 Slashing . | . . . . . . . . Piercing . | . . . . . . . . Highest Corruption 1 | . . . . . . 1 1 Average Corruption 1 | . . . . . . 1 1 Corruption Purged . | . . . . . . . . Corruption Blocked . | . . . . . . . . Effects 2 | . . . . . . . 2 Matter Fused 1 | . . . . . . . 1 Misfires 1 | . . . . . . . 1 Overload Shots . | . . . . . . . . Overflow Damage 129 | . . . . . 33 51 45 Projectiles . | . . . . . . . . Explosions 51 | . . . . . . 51 . Melee 78 | . . . . . 33 . 45 Knockbacks 1 | . . . . . . . 1 Impact 1 | . . . . . . . 1 Kinetic . | . . . . . . . . Secondary . | . . . . . . . . Self-Inflicted Damage 346 | . . . . . . 346 . Shots 9 | . . . . . . 9 . Rammed . | . . . . . . . . Targets Rammed . | . . . . . . . . Kicked . | . . . . . . . . Crushed . | . . . . . . . . Highest Temperature 292 | . 20 6 . 12 144 292 199 Average Temperature 52 | . 8 4 . 4 56 71 76 Received Heat Transfer 933 | . 18 . . 6 153 594 162 Effects 2 | . . . . . . 2 . Interference 2 | . . . . . . 2 . Siege Activations . | . . . . . . . . Robots Corrupted . | . . . . . . . . Combat Hostiles . | . . . . . . . . Parts Fried 7 | . . . . . 3 . 4 Impact Corruptions 7 | . . . . . 2 . 5 Robots Melted . | . . . . . . . . Combat Hostiles . | . . . . . . . . Parts Melted . | . . . . . . . . Heat Transferred 470 | . . . . . . 100 370 Parts Sabotaged . | . . . . . . . . Parts Stolen . | . . . . . . . . Parts Stripped . | . . . . . . . . Power Chain Reactions . | . . . . . . . . Alert | -11 -10 -10 -10 -9 -8 -8 -8 ------- Run | Yrd Mat Min Exi Min Mat Gar Sto Peak Influence 876 | 30 179 60 . 55 161 876 557 Initial 434 | . 19 . . . 5 98 434 Average 162 | 13 68 44 . 5 68 440 487 Maximum Alert Level 3 | . . . . . . 3 2 Low Security (%) 76 | 100 100 100 . 100 100 24 . Level 1 4 | . . . . . . 18 . Level 2 15 | . . . . . . 39 100 Level 3 3 | . . . . . . 16 . Level 4 . | . . . . . . . . Level 5 . | . . . . . . . . High Security . | . . . . . . . . Max Security . | . . . . . . . . Squads Dispatched 7 | . 1 . . . 2 . 4 Investigation 1 | . . . . . 1 . . Extermination . | . . . . . . . . Reinforcement 3 | . 1 . . . 1 . 1 Assault . | . . . . . . . . Garrison 3 | . . . . . . . 3 Intercept . | . . . . . . . . Searches Triggered . | . . . . . . . . Construction Impeded . | . . . . . . . . Haulers Reinforced . | . . . . . . . . Active Scanning Responses . | . . . . . . . . Cargo Convoy Interrupts . | . . . . . . . . Stealth | -11 -10 -10 -10 -9 -8 -8 -8 --------- Run | Yrd Mat Min Exi Min Mat Gar Sto Distress Signals 5 | . 2 . . . 1 1 1 Communications Jammed . | . . . . . . . . Distress Signals . | . . . . . . . . Times Spotted 86 | . 15 5 2 5 12 38 9 Peak Tracking Total 11 | . 3 3 4 2 5 11 6 Tactical Retreats 15 | . 1 1 . . 1 11 1 Traps | -11 -10 -10 -10 -9 -8 -8 -8 ------- Run | Yrd Mat Min Exi Min Mat Gar Sto Traps Triggered 8 | . 1 . . . 1 4 2 Indirectly . | . . . . . . . . Trap Hack Attempts . | . . . . . . . . Triggered . | . . . . . . . . Disarmed . | . . . . . . . . Reprogrammed . | . . . . . . . . Reused . | . . . . . . . . Traps Extracted . | . . . . . . . . Installed . | . . . . . . . . Triggered . | . . . . . . . . Machines | -11 -10 -10 -10 -9 -8 -8 -8 ---------- Run | Yrd Mat Min Exi Min Mat Gar Sto Machines Disabled 7 | . 1 . . . . 6 . Max in Single Turn 2 | . 1 . . . . 2 . Garrison Relay 1 | . . . . . . 1 . Phase Generator 1 | . . . . . . 1 . Machines Repaired . | . . . . . . . . Machines Dismantled . | . . . . . . . . Machines Sabotaged . | . . . . . . . . Overloaded Fab Kills . | . . . . . . . . Hacking | -11 -10 -10 -10 -9 -8 -8 -8 --------- Run | Yrd Mat Min Exi Min Mat Gar Sto Machines Accessed 19 | . 7 . 1 . 8 2 1 Terminals 16 | . 7 . . . 6 2 1 Fabricators . | . . . . . . . . Repair Stations . | . . . . . . . . Recycling Units . | . . . . . . . . Scanalyzers 1 | . . . . . 1 . . Garrison Access 1 | . . . . . 1 . . Total Hacks 59 | . 24 . 1 . 26 4 4 Successful 38 | . 16 . 1 . 19 1 1 Failed 21 | . 8 . . . 7 3 3 Catastrophic 3 | . 1 . . . . 1 1 Database Lockouts . | . . . . . . . . Manual 37 | . 21 . 1 . 15 . . Terminals 54 | . 24 . . . 22 4 4 Fabricators . | . . . . . . . . Repair Stations . | . . . . . . . . Recycling Units . | . . . . . . . . Scanalyzers 1 | . . . . . 1 . . Garrison Access 3 | . . . . . 3 . . Terminal Hacks 17 | . 6 . 1 . 8 1 1 Robot Analysis 4 | . 3 . . . 1 . . Open Door 1 | . . . . . . . 1 Terminal Index 2 | . 1 . . . 1 . . Scanalyzer Index 1 | . . . . . 1 . . Alert Level 3 | . 1 . . . 2 . . Locate Traps 1 | . . . . . 1 . . Recall Reinforcements 1 | . 1 . . . . . . Hauler Manifests 1 | . . . . . 1 . . Registered Components 1 | . . . . . 1 . . Garrison Registry 1 | . . . . . . 1 . Derelict Proto ID Bank 1 | . . . 1 . . . . Fabricator Hacks . | . . . . . . . . Repair Station Hacks . | . . . . . . . . Recycling Unit Hacks . | . . . . . . . . Scanalyzer 1 | . . . . . 1 . . Insert Component 1 | . . . . . 1 . . Garrison Access Hacks 1 | . . . . . 1 . . Unlock Access 1 | . . . . . 1 . . Unauthorized Hacks 19 | . 10 . . . 9 . . Terminals 19 | . 10 . . . 9 . . Track 2 | . . . . . 2 . . Assimilate 2 | . 1 . . . 1 . . Botnet 13 | . 7 . . . 6 . . Operators 2 | . 2 . . . . . . Fabricators . | . . . . . . . . Repair Stations . | . . . . . . . . Recycling Units . | . . . . . . . . Scanalyzers . | . . . . . . . . Garrison Access . | . . . . . . . . Data Cores Recovered . | . . . . . . . . Used . | . . . . . . . . Hacking Detections 15 | . 7 . . . 5 2 1 Full Trace Events 1 | . . . . . 1 . . Feedback Events . | . . . . . . . . Feedback Blocked . | . . . . . . . . Robot Schematics Acquired . | . . . . . . . . Robots Built . | . . . . . . . . Authchips . | . . . . . . . . Time . | . . . . . . . . Total Robot Build Rating . | . . . . . . . . Part Schematics Acquired . | . . . . . . . . Parts Built . | . . . . . . . . Authchips . | . . . . . . . . Time . | . . . . . . . . Total Part Build Rating . | . . . . . . . . Parts Repaired . | . . . . . . . . Time . | . . . . . . . . Parts Recycled . | . . . . . . . . Recycled Matter . | . . . . . . . . Retrieved Matter . | . . . . . . . . Retrieved Components . | . . . . . . . . Parts Scanalyzed . | . . . . . . . . Part Schematics Acquired . | . . . . . . . . Parts Damaged . | . . . . . . . . Bothacking | -11 -10 -10 -10 -9 -8 -8 -8 ------------ Run | Yrd Mat Min Exi Min Mat Gar Sto Used RIF Installer 1 | . . . . . . 1 . Robots Hacked . | . . . . . . . . Non-combat . | . . . . . . . . Combat . | . . . . . . . . Robot Hacks Applied . | . . . . . . . . Relay Couplers Released 3 | . . . . . . 3 . Machine Destruction 3 | . . . . . . 3 . Fabnet Peak Effective % . | . . . . . . . . Robots Rewired . | . . . . . . . . Allies Hacked . | . . . . . . . . Hacks Repelled . | . . . . . . . . Allies | -11 -10 -10 -10 -9 -8 -8 -8 -------- Run | Yrd Mat Min Exi Min Mat Gar Sto Total Allies 2 | . 1 . . 1 . . . Largest Group 1 | . 1 1 1 1 . . . Highest-Rated Group 31 | . 10 10 10 31 . . . Highest-Rated Ally 31 | . 10 10 10 31 . . . Total Orders . | . . . . . . . . Ally Attacks 8 | . . . . 8 . . . Total Damage 103 | . . . . 103 . . . Kills 1 | . . . . 1 . . . Allies Corrupted 1 | . . . . 1 . . . Allies Melted . | . . . . . . . . Intel | -11 -10 -10 -10 -9 -8 -8 -8 ------- Run | Yrd Mat Min Exi Min Mat Gar Sto Robot Analysis Total 4 | . 3 . . . 1 . . Derelict Logs Recovered 2 | . . 1 . 1 . . . Drone Launches . | . . . . . . . . Drone Recoveries . | . . . . . . . . Exploration | -11 -10 -10 -10 -9 -8 -8 -8 ------------- Run | Yrd Mat Min Exi Min Mat Gar Sto Turns Passed 5861 | 391 1267 758 333 847 678 1205 382 Spaces Moved 3596 | 182 650 529 339 597 447 630 222 Core 4 | 4 . . . . . . . Treads 660 | 176 338 134 . 3 . 9 . Legs 397 | . . . . . . 175 222 Wheels 2535 | 2 312 395 339 594 447 446 . Hover . | . . . . . . . . Flight . | . . . . . . . . Fastest Speed 50 | 50 95 95 95 110 95 90 140 Average Speed 135 | 156 170 134 97 120 108 149 140 Slowest Speed 400 | 160 240 240 125 240 140 400 140 Overloaded Moves . | . . . . . . . . Propulsion Burnouts . | . . . . . . . . Robots Hopped . | . . . . . . . . Cave-ins Triggered . | . . . . . . . . Exploration Rate (%) 60 | 8 85 98 68 86 37 70 31 Regions Visited 7 Branch Regions 4 Pre-discovered Areas 1 | . . 1 . . . . . Known Exits Taken 1 | . . . . . 1 . . Unknown Exits Taken 5 | 1 1 1 1 1 . . . Scrap Searched 1 | . . 1 . . . . . Spaces Dug 17 | . . . . . 5 11 1 Terrain Destroyed 178 | . 3 . . . 5 166 4 Melee 6 | . . . . . 5 . 1 Projectile 8 | . . . . . . 5 3 AOE 164 | . 3 . . . . 161 . Terrain Rammed . | . . . . . . . . Walls Destroyed . | . . . . . . . . Machines Disabled . | . . . . . . . . Actions | -11 -10 -10 -10 -9 -8 -8 -8 --------- Run | Yrd Mat Min Exi Min Mat Gar Sto Total 4191 | 244 761 556 343 676 585 771 255 Wait 194 | . 50 2 . 36 85 17 4 Move 3588 | 181 649 528 338 596 446 628 222 Hop . | . . . . . . . . Pick Up 29 | 6 10 2 2 2 5 2 . Fast Attach 19 | 7 . . 1 2 1 7 1 Attach 20 | . . . . . 5 12 3 Detach 2 | . . . . . . 2 . Swap 48 | . 9 4 . 7 8 18 2 Drop 23 | . 10 5 2 3 2 1 . Fire 213 | 50 33 15 . 21 26 56 12 Melee 47 | . . . . 9 7 20 11 Ram . | . . . . . . . . Kick . | . . . . . . . . Crush . | . . . . . . . . Escape Stasis 8 | . . . . . . 8 . Rewire . | . . . . . . . . Trap . | . . . . . . . . Miscellaneous . | . . . . . . . . Route ------- -11/Scrapyard -10/Materials (discovered 4 exits: [*Mat x3] / [*Min]) -10/Mines (discovered 3 exits: [*Mat x2] / *Exi) -10/Exiles (discovered 2 exits: [*Min x2]) -9/Mines (discovered 2 exits: *Mat x2) -8/Materials (discovered 5 exits: *Fac x3 / Sto / Gar) -8/Garrison (discovered 3 exits: *Sto x3) -8/Storage History --------- Turn | Location | Event 46 | -11/Scrapyard | Discovered new exit (range 15) 392 | -11/Scrapyard | Entered Materials 407 | -10/Materials | Build established: Mutant 529 | -10/Materials | Discovered new exit (range 3) 730 | -10/Materials | Discovered new exit (range 12) 932 | -10/Materials | Discovered new exit (range 13) 1417 | -10/Materials | Discovered new exit (range 7) 1659 | -10/Materials | Entered Mines 1659 | -10/Mines | Accompanied by 1 ally 1683 | -10/Mines | Learned Materials stockpile data 1997 | -10/Mines | Discovered new exit (range 15) 2133 | -10/Mines | Learned location of Storage (-8) 2188 | -10/Mines | Discovered new exit (range 5) 2314 | -10/Mines | Received a Rocket Launcher from a helpful Derelict 2348 | -10/Mines | Deemed a non-threat by the Exiles lab entrance 2348 | -10/Mines | Discovered new exit (range 5) 2417 | -10/Mines | Entered Exiles 2417 | -10/Exiles | Accompanied by 1 ally 2432 | -10/Exiles | Discovered new exit (range 14) 2453 | -10/Exiles | Met 8R-AWN 2469 | -10/Exiles | Met EX-HEX 2494 | -10/Exiles | Met EX-BIN 2507 | -10/Exiles | Aligned with FarCom system 2508 | -10/Exiles | Given EX-Vault access code 2530 | -10/Exiles | Opened EX-Vault 2546 | -10/Exiles | Found Potential Leg 2565 | -10/Exiles | Warned to stay clear of 0b10 Research branches 2569 | -10/Exiles | Exiles lab attacked by MAIN.C 2619 | -10/Exiles | Found Potential Leg 2739 | -10/Exiles | Discovered new exit (range 11) 2750 | -10/Exiles | Left Exiles lab with Potential Leg 2750 | -10/Exiles | Entered Mines 2830 | -9/Mines | Excavation squad dispatched 2830 | -9/Mines | A large section of the Mines collapsed 2886 | -9/Mines | Learned 8 Materials zone layouts 2979 | -9/Mines | Discovered new exit (range 8) 3336 | -9/Mines | Received a Mining Laser from a helpful Derelict 3524 | -9/Mines | Discovered new exit (range 9) 3566 | -9/Mines | Build established: Scavenger-Mutant 3597 | -9/Mines | Entered Materials 3597 | -8/Materials | Evolved 4 slots: Propulsion x1, Utility x3 3598 | -8/Materials | Identified exit to Factory 3598 | -8/Materials | Identified exit to Storage 4274 | -8/Materials | Identified exit to Garrison 4275 | -8/Materials | Entered Garrison 4514 | -8/Garrison | Triggered checkpoint 4535 | -8/Garrison | Discovered exit to Storage (range 58) 4535 | -8/Garrison | Discovered exit to Storage (range 76) 4535 | -8/Garrison | Discovered exit to Storage (range 47) 4553 | -8/Garrison | Garrison Relay disabled 4606 | -8/Garrison | Build established: Mutant 4912 | -8/Garrison | Lost 5 parts (2n2u1w) 4986 | -8/Garrison | Triggered checkpoint 5217 | -8/Garrison | Installed Relay Interface Framework 5278 | -8/Garrison | Phase Generator disabled 5362 | -8/Garrison | Triggered checkpoint 5386 | -8/Garrison | Core integrity fell below 50% 5421 | -8/Garrison | Lost 6 parts (1p4n1w) 5456 | -8/Garrison | Lost 4 parts (1p2u1w) 5480 | -8/Garrison | Entered Storage 5650 | -8/Storage | Garrison activated, responded to threat 5753 | -8/Storage | Core integrity fell below 20% 5862 | -8/Storage | Self-destructed Last Messages --------------- corrupted. 05783_ Acquired 49 matter. 05784_ O-16 Technician uses terminal to summon reinforcements. 05784_ ALERT: Hostiles spotted, dispatching reinforcements to Terminal S011. 05784_ O-16 Technician locks terminal. 05787_ K-01 Serf collects debris. 05789_ U-05 Engineer builds a Wall. 05790_ K-01 Serf collects debris. 05805_ Sneak attack on K-01 Serf. 05805_ Destroyed Wheel. 05805_ K-01 Serf system corrupted by crushing effect. 05805_ K-01 Serf knocked back. 05806_ K-01 Serf system terminally corrupted. 05806_ Med. Matter Pod fried. 05809_ Acquired 9 matter. 05816_ Sneak attack on A-02 Transporter. 05836_ System corrupted: Matter fused (-8). Map ----- +----------------------------------------------------+ | | | | | | | | | | | | | | | | | | | | | | | | | | | | | | | | | | | | | | | | | | | ??????????????????????##?????????????????????????? | | ?????????????????????##Y###??????????????????????? | | ?????????????????????# #??????????????????????? | | ?????????????????????# ########???????????????? | | ?????????????????????#/! @g gg + "???????????????? | | ?????????????????????#!! #### #T#???????????????? | | ?????????????????????# #?##Y###???????????????? | | ?????????????????????# #?# ####?Y???##??????? | | ?????????????????????######?# T +????? #????# | | ??????????????????????? ???# ####???""" #????# | | ??????????????????????? ??## ##?????"""" #??### | | ??????????????????Y???? ??# #?????""""" ??# "" | | ??????????????????????? """??# #????? ??#"G | | ????????????????????????""" ?# #??????"""" ??# "" | | ?????????????????????????"" ?# #??????"""" ??#### | | ?????????????????#g########+## #?????""""" ###### | | ?????????????????# ^^ Y #?????? # # | | ?????????????????????# #??????##+######### | | ?????????????????????# "" #??????# | | ??????????????????b?#T """" ######## | | ????????????????????## """" % | | ?????????????????????# """" ############+###### | | ?????????????????????# """ #?#####?# ## | | ?????????????????????# """ #???????# ## | | ?????????????????????# ######### """ #? | | ?????????????????????# + """ #? | | ?????????????????????# ###### """ =#? | | ?????????????????????# #????# """ #? | | ?????????????????????# #????# """ #? | +----------------------------------------------------+ Best States ------------- Heat Dissipation 31 Energy Generation 18 Energy Capacity 265 Matter Stores 700 Matter Capacity 700 Sight Range 16 Terrain Scan Density 10 Armor Coverage 375 Evasion (%) 55 Recoil Reduction 2 Offensive Hacking 10 Item Schematics ----------------- None Robot Schematics ------------------ None Fabricated ------------ Nothing Alien Tech Used ----------------- None Achievements -------------- None Challenges ------------ None Game ------ Seed ChargeReflectiveWarhead Manual? 0 Play Time 00:48:25 Cumulative 97.1 hours Start 2024.04.22 @ 16:40:31 End 2024.04.22 @ 17:29:48 Sessions 1 Manual Loads 0 Difficulty Rogue Special Mode None Game No. 99 Rogue 99 Adventurer 0 Explorer 0 Win Type - Total 2 Types 1/0/0/1/0/0/0/0/0 Lore% 43 Gallery% 52 Achievement% 40 Wizard Run 0 Options --------- Layout 1 ASCII 0 Keyboard 0 Movement Numpad Keybinds 0 Fullscreen 2 Font 24/X11 Map View 50x35 Zoom Use 0% Tactical HUD 1 Map Filters NONE Filters NONE Steam 0 RUN: e0d0c8eb-c22c-4aba-af5a-b4a894b3b7e2